bitfinex-derivatives/quotes_BTCF0:USTF0_20250711
["timestamp","ask_amount","ask_price","bid_price","bid_amount"]
[1752258254916,1.05278367,117720.0,117710.0,1.3519248]
[1752258255111,1.11380465,117720.0,117710.0,1.3519248]
[1752258258220,0.1698511,117710.0,117700.0,1.3519764]
[1752258258419,1.05052807,117710.0,117700.0,1.3519764]
[1752258259725,1.11162437,117710.0,117700.0,1.3519764]
[1752258259924,1.05052807,117710.0,117700.0,1.3529764]
[1752258260524,1.11161961,117710.0,117700.0,1.3529764]
[1752258262021,1.06678784,117710.0,117700.0,1.18312]
[1752258262324,1.14328402,117710.0,117700.0,0.001]
[1752258262525,1.15197332,117710.0,117700.0,0.001]
[1752258263228,1.13655567,117710.0,117700.0,0.001]
[1752258264428,1.12786637,117710.0,117700.0,0.001]
[1752258264632,1.71906637,117710.0,117700.0,0.001]
[1752258265431,1.12786637,117710.0,117700.0,0.1708655]
[1752258265630,1.71894637,117710.0,117700.0,0.1708655]
[1752258265830,0.7277394,117710.0,117700.0,0.1708655]
[1752258266030,1.12786637,117710.0,117700.0,0.1708655]
[1752258266231,1.12786637,117710.0,117700.0,0.001]
[1752258267332,1.12786637,117710.0,117690.0,1.18212]
[1752258267333,0.2896155,117700.0,117690.0,1.18212]
[1752258267539,0.2896299,117690.0,117680.0,0.00169945]
[1752258267724,1.11161154,117690.0,117680.0,0.00169945]
[1752258269434,1.11161154,117690.0,117680.0,0.00469945]
[1752258270627,1.11161154,117690.0,117680.0,0.00769945]
[1752258270827,1.11161154,117690.0,117680.0,0.17759385]
[1752258271229,1.12705305,117690.0,117680.0,0.17759385]
[1752258271436,1.12725305,117690.0,117680.0,0.17779385]
[1752258271834,1.12725305,117690.0,117680.0,0.20082385]
[1752258271835,0.72712608,117690.0,117680.0,0.20082385]
[1752258272034,0.72712608,117690.0,117680.0,0.17779385]
[1752258272035,0.6506299,117690.0,117680.0,0.17779385]
[1752258273031,0.71160951,117690.0,117680.0,0.17779385]
[1752258273633,0.71160951,117690.0,117680.0,0.26617761]
[1752258273829,0.71160951,117690.0,117680.0,0.09628321]
[1752258274033,1.11173648,117690.0,117680.0,0.00789945]
[1752258275242,1.12015972,117690.0,117680.0,0.00789945]
[1752258275440,1.11173648,117690.0,117680.0,0.00789945]
[1752258277937,1.11173648,117690.0,117680.0,0.17779385]
[1752258278945,0.71160951,117690.0,117680.0,0.26617761]
[1752258281240,0.71160951,117690.0,117680.0,0.28920761]
[1752258281440,0.6506299,117690.0,117680.0,0.28920761]
[1752258281644,0.6506299,117690.0,117680.0,0.26617761]
[1752258281848,1.12725305,117690.0,117680.0,0.09628321]
[1752258282148,1.12725305,117690.0,117680.0,0.26617761]
[1752258282650,1.12725305,117690.0,117680.0,0.17779385]
[1752258282851,1.12725305,117690.0,117680.0,0.09628321]
[1752258283146,1.12725305,117690.0,117680.0,0.00789945]
[1752258285044,1.14357976,117690.0,117680.0,0.00789945]
[1752258288449,1.17423967,117690.0,117680.0,0.00789945]
[1752258290050,1.06708358,117690.0,117680.0,0.00789945]
[1752258291144,1.14340306,117690.0,117680.0,0.00789945]
[1752258293052,1.06708358,117690.0,117680.0,0.00789945]
[1752258293952,1.14342223,117690.0,117680.0,0.00789945]
[1752258294345,1.06708358,117690.0,117680.0,0.00789945]
[1752258294546,1.17423967,117690.0,117680.0,0.00789945]
[1752258294741,1.25058716,117690.0,117680.0,0.00789945]
[1752258294949,1.14343107,117690.0,117680.0,0.00789945]
[1752258295450,1.06708358,117690.0,117680.0,0.00789945]
[1752258299151,1.65824358,117690.0,117680.0,0.17779565]
[1752258299455,1.76539967,117690.0,117680.0,0.17779565]
[1752258300151,0.7741127,117690.0,117680.0,0.17779565]
[1752258300355,0.85053047,117690.0,117680.0,0.68901638]
[1752258300555,0.74337438,117690.0,117680.0,0.68901638]
[1752258301453,0.66695661,117690.0,117680.0,0.68901638]
[1752258301947,0.74337296,117690.0,117680.0,0.68901638]
[1752258304450,0.66695841,117690.0,117680.0,0.68901638]
[1752258305851,0.74337058,117690.0,117680.0,0.68901638]
[1752258310657,0.74337058,117690.0,117680.0,0.28888941]
[1752258311551,1.14349755,117690.0,117680.0,0.26617941]
[1752258312159,1.06708538,117690.0,117680.0,0.26617941]
[1752258312456,1.17424147,117690.0,117680.0,0.26617941]
[1752258312657,1.17424147,117690.0,117680.0,0.17779565]
[1752258312857,1.17424147,117690.0,117680.0,0.26617941]
[1752258314364,1.15791476,117690.0,117680.0,0.26617941]
[1752258316152,1.15791476,117690.0,117680.0,0.00789945]
[1752258316359,1.1118811,117690.0,117680.0,0.26617931]
[1752258316553,1.1118811,117690.0,117680.0,0.09628321]
[1752258316748,1.7028011,117690.0,117680.0,0.00789945]
[1752258316955,0.1699106,117670.0,117660.0,1.46175997]
[1752258317154,1.05004757,117670.0,117660.0,1.50766263]
[1752258317651,1.14287477,117670.0,117660.0,1.44014626]
[1752258318159,1.06646194,117670.0,117660.0,1.44014626]
[1752258318358,1.17361803,117670.0,117660.0,1.44014626]
[1752258318558,1.17361803,117670.0,117660.0,1.44514626]
[1752258318959,1.17361803,117670.0,117660.0,1.44914626]
[1752258321459,1.06646194,117670.0,117660.0,1.44914626]
[1752258322759,0.13562437,117670.0,117660.0,1.78391947]
[1752258322958,0.07329437,117670.0,117660.0,2.23310323]
[1752258323154,0.09680437,117670.0,117660.0,1.87230323]
[1752258323359,0.30349497,117670.0,117660.0,1.87230323]
[1752258323863,0.74066276,117670.0,117660.0,1.87230323]
[1752258324068,0.72537545,117670.0,117660.0,1.87230323]
[1752258324654,0.72537545,117670.0,117660.0,0.29033626]
[1752258324865,1.65526194,117670.0,117660.0,0.009]
[1752258325166,0.2871095,117650.0,117640.0,0.76249393]
[1752258325364,0.2871095,117650.0,117640.0,0.78552393]
[1752258325566,0.6479095,117650.0,117640.0,1.34372172]
[1752258325961,1.06392302,117650.0,117640.0,0.15977085]
[1752258326264,1.12500431,117650.0,117640.0,0.09608379]
[1752258326465,1.06392302,117650.0,117640.0,0.09608379]
[1752258326762,1.52512257,117650.0,117640.0,0.01470003]
[1752258326963,0.2871384,117630.0,117620.0,0.60833755]
[1752258327167,1.40886537,117630.0,117620.0,0.84920656]
[1752258327561,0.53904896,117630.0,117620.0,1.46307656]
[1752258327760,0.08039,117630.0,117620.0,2.2324229]
[1752258327957,0.2503584,117630.0,117620.0,2.2324229]
[1752258328364,0.64871286,117640.0,117630.0,0.1929984]
[1752258328563,0.67222286,117640.0,117630.0,0.74910796]
[1752258328768,0.70900286,117640.0,117630.0,0.74910796]
[1752258329069,0.11795896,117640.0,117630.0,1.10990796]
[1752258329269,0.28791286,117640.0,117630.0,1.10990796]
[1752258329467,0.28891286,117640.0,117630.0,1.10990796]
[1752258329659,0.2881239,117640.0,117630.0,0.34898099]
[1752258329865,1.04905087,117640.0,117630.0,0.34898099]
[1752258330566,0.6489239,117640.0,117630.0,0.84898099]
[1752258330870,0.71000286,117640.0,117630.0,0.84898099]
[1752258331072,0.6489239,117640.0,117630.0,0.84898099]
[1752258333073,0.6499239,117640.0,117630.0,0.84898099]
[1752258336571,0.6499239,117640.0,117630.0,1.24910796]
[1752258336878,0.6501239,117640.0,117630.0,1.24930796]
[1752258337177,0.6501239,117640.0,117630.0,0.84918099]
[1752258337976,1.05025087,117640.0,117630.0,0.84918099]
[1752258338181,1.05025087,117640.0,117630.0,0.82615099]
[1752258338978,1.05025087,117640.0,117630.0,0.32615099]
[1752258339680,1.05025087,117640.0,117630.0,1.50783099]
[1752258340581,1.11132983,117640.0,117630.0,1.50783099]
[1752258342384,1.11132983,117640.0,117630.0,1.41944723]
[1752258342684,1.5114568,117640.0,117630.0,1.18188]
[1752258342981,2.04117784,117640.0,117630.0,0.0002]
[1752258343380,1.71741866,117640.0,117630.0,0.0002]
[1752258344080,1.71641866,117640.0,117630.0,0.0002]
[1752258344279,1.71741866,117640.0,117630.0,0.0002]
[1752258344680,1.64405087,117640.0,117630.0,0.0002]
[1752258345079,1.72028527,117640.0,117630.0,0.0002]
[1752258345885,1.72029331,117640.0,117630.0,0.0002]
[1752258348282,2.12042028,117640.0,117630.0,0.0002]
[1752258348587,1.72029331,117640.0,117630.0,0.0002]
[1752258349688,2.08109331,117640.0,117630.0,0.0002]
[1752258351284,2.48122028,117640.0,117630.0,0.0002]
[1752258351486,2.48122028,117640.0,117600.0,0.23200872]
[1752258351487,0.2859473,117610.0,117600.0,0.23200872]
[1752258351677,1.04687427,117610.0,117600.0,0.89246548]
[1752258351989,1.04687427,117610.0,117600.0,0.76834254]
[1752258352281,1.10789179,117610.0,117600.0,0.10788578]
[1752258352481,1.10789179,117610.0,117600.0,0.01950202]
[1752258352879,1.10789179,117610.0,117570.0,0.108056]
[1752258352880,1.50801876,117610.0,117570.0,0.108056]
[1752258353080,1.50801876,117610.0,117560.0,0.27981649]
[1752258353081,0.2054151,117570.0,117560.0,0.27981649]
[1752258353277,0.68613207,117570.0,117560.0,0.80503089]
[1752258353482,1.04693207,117570.0,117560.0,0.85090005]
[1752258354683,0.6468051,117570.0,117560.0,0.87393005]
[1752258354877,0.2860051,117570.0,117560.0,1.23473005]
[1752258355281,0.05586,117570.0,117560.0,1.71341489]
[1752258355682,0.2860051,117570.0,117560.0,1.71341489]
[1752258356284,0.2860051,117570.0,117560.0,1.35261489]
[1752258356680,0.2860051,117570.0,117560.0,0.95248792]
[1752258358690,0.2860051,117570.0,117560.0,0.95448792]
[1752258363791,0.68613207,117570.0,117560.0,0.93145792]
[1752258364298,1.04693207,117570.0,117560.0,0.68484495]
[1752258364499,1.04693207,117570.0,117560.0,0.85491455]
[1752258364897,1.04693207,117570.0,117560.0,0.59646119]
[1752258365191,1.04693207,117570.0,117560.0,0.76653079]
[1752258365896,1.04693207,117570.0,117560.0,0.59646119]
[1752258366491,1.04693207,117570.0,117560.0,0.76653079]
[1752258367196,1.04693207,117570.0,117560.0,0.59646119]
[1752258367595,1.04693207,117570.0,117560.0,0.00570119]
[1752258367596,1.63781207,117570.0,117560.0,0.00570119]
[1752258368296,1.63781207,117570.0,117560.0,0.00370119]
[1752258368498,1.63881207,117570.0,117560.0,0.00190119]
[1752258369195,1.69982959,117570.0,117560.0,0.00190119]
[1752258370191,2.03893904,117570.0,117560.0,0.00190119]
[1752258370393,0.2860485,117540.0,117530.0,1.18176]
[1752258370592,0.2860485,117540.0,117530.0,1.351873]
[1752258370593,0.70249441,117540.0,117530.0,1.351873]
[1752258370797,0.70249441,117540.0,117530.0,1.44025676]
[1752258370997,1.06329441,117540.0,117530.0,1.44025676]
[1752258371495,0.66316744,117540.0,117530.0,1.44025676]
[1752258371692,0.49306894,117540.0,117530.0,1.86341373]
[1752258372001,0.66316744,117540.0,117530.0,1.86341373]
[1752258372294,0.66316744,117540.0,117530.0,1.86741373]
[1752258372500,0.66316744,117540.0,117530.0,1.87041373]
[1752258372799,0.66316744,117540.0,117530.0,1.46828676]
[1752258372999,0.66316744,117540.0,117530.0,1.53794019]
[1752258373201,0.66316744,117540.0,117530.0,1.53494019]
[1752258373400,0.66316744,117540.0,117530.0,1.53694019]
[1752258374300,1.06329441,117540.0,117530.0,1.36682719]
[1752258374498,1.06329441,117540.0,117530.0,1.25541343]
[1752258374699,1.06329441,117540.0,117530.0,1.34379719]
[1752258375198,1.06329441,117540.0,117530.0,1.51391019]
[1752258375794,0.66316744,117540.0,117530.0,1.51391019]
[1752258375995,0.13226894,117540.0,117530.0,1.93706716]
[1752258376295,0.30236744,117540.0,117530.0,1.93706716]
[1752258376696,0.30236744,117540.0,117530.0,1.53694019]
[1752258380004,0.66316744,117540.0,117530.0,1.53694019]
[1752258380708,1.13361065,117540.0,117530.0,1.53694019]
[1752258381206,0.66316744,117540.0,117530.0,1.53694019]
[1752258383611,0.13226894,117540.0,117530.0,1.53694019]
[1752258383809,0.30236744,117540.0,117530.0,1.53694019]
[1752258384407,0.30236744,117540.0,117530.0,0.35518019]
[1752258384606,0.30236744,117540.0,117530.0,0.94610019]
[1752258385107,0.72418496,117540.0,117530.0,0.94610019]
[1752258387010,0.66316744,117540.0,117530.0,0.94610019]
[1752258387207,0.66316744,117540.0,117530.0,0.94630019]
[1752258387613,0.72418496,117540.0,117530.0,0.94630019]
[1752258391914,0.72418496,117540.0,117530.0,0.94626019]
[1752258394417,0.72418496,117540.0,117530.0,0.35538019]
[1752258394609,0.72418496,117540.0,117530.0,0.94622019]
[1752258397615,1.19462817,117540.0,117530.0,0.94622019]
[1752258398213,1.19462817,117540.0,117530.0,0.75307719]
[1752258398412,1.19462817,117540.0,117530.0,0.09258376]
[1752258398613,1.19462817,117540.0,117530.0,0.68338376]
[1752258399211,1.12578556,117540.0,117530.0,0.85349676]
[1752258400216,1.06476804,117540.0,117530.0,0.85349676]
[1752258400610,1.14103994,117540.0,117530.0,0.85349676]
[1752258401517,1.06476804,117540.0,117530.0,0.85349676]
[1752258402319,1.17192413,117540.0,117530.0,0.85349676]
[1752258405615,0.60022503,117540.0,117530.0,0.28572676]
[1752258405822,0.40952353,117540.0,117530.0,1.27808736]
[1752258406120,0.37893561,117540.0,117530.0,0.87648676]
[1752258406512,0.78053621,117540.0,117530.0,0.87648676]
[1752258406719,0.37893561,117540.0,117530.0,0.87648676]
[1752258407916,1.14133621,117540.0,117530.0,0.87648676]
[1752258408416,1.14133621,117540.0,117530.0,0.85345676]
[1752258408614,1.14133621,117540.0,117530.0,0.765073]
[1752258408818,1.14133621,117540.0,117530.0,0.85341666]
[1752258409015,1.06476804,117540.0,117530.0,0.85341666]
[1752258409821,1.17192413,117540.0,117530.0,0.85341666]
[1752258411222,1.17192413,117540.0,117530.0,0.68330376]
[1752258412022,1.24849649,117540.0,117530.0,0.68330376]
[1752258412217,1.1413404,117540.0,117530.0,0.68330376]
[1752258412618,1.1413404,117540.0,117530.0,0.85341676]
[1752258416424,0.7397398,117540.0,117530.0,0.85341676]
[1752258416621,1.1413404,117540.0,117530.0,0.85341676]
[1752258417420,0.7397398,117540.0,117530.0,0.85341676]
[1752258417621,1.1413404,117540.0,117530.0,0.85241676]
[1752258418725,1.17192413,117540.0,117530.0,0.85241676]
[1752258419123,0.23942503,117540.0,117530.0,0.786633]
[1752258419322,0.40952353,117540.0,117530.0,1.27661736]
[1752258419623,0.30236744,117540.0,117530.0,1.27561736]
[1752258419822,0.30236744,117540.0,117530.0,0.87301676]
[1752258420027,0.40952353,117540.0,117530.0,0.87401676]
[1752258420324,0.81112413,117540.0,117530.0,0.87401676]
[1752258420723,0.40952353,117540.0,117530.0,0.87401676]
[1752258421021,0.39320459,117540.0,117530.0,0.87401676]
[1752258421428,0.79480519,117540.0,117530.0,0.87401676]
[1752258421925,1.15560519,117540.0,117530.0,0.87401666]
[1752258423225,1.0484491,117540.0,117530.0,0.87401666]
[1752258423530,1.12501448,117540.0,117530.0,0.87401666]
[1752258424424,0.72341388,117540.0,117530.0,0.87401666]
[1752258424630,0.72341388,117540.0,117530.0,1.27561726]
[1752258424927,1.12501448,117540.0,117530.0,0.87401666]
[1752258427829,0.72341388,117540.0,117530.0,1.27561726]
[1752258428226,0.36261388,117540.0,117530.0,1.27561726]
[1752258428725,0.36261388,117540.0,117530.0,0.87401666]
[1752258430230,0.2860485,117540.0,117530.0,0.87401666]
[1752258430429,0.36261177,117540.0,117530.0,0.87401666]
[1752258430728,0.2860485,117540.0,117530.0,0.87401666]
[1752258431229,0.36261111,117540.0,117530.0,0.87401666]
[1752258432129,0.76421171,117540.0,117530.0,0.87401666]
[1752258432426,1.12501171,117540.0,117530.0,0.87401666]
[1752258432628,0.72341111,117540.0,117530.0,0.7856329]
[1752258432829,0.72341111,117540.0,117530.0,0.87401666]
[1752258433030,1.12501171,117540.0,117530.0,0.87401666]
[1752258435025,1.10970093,117540.0,117530.0,0.68130376]
[1752258435631,1.10970093,117540.0,117530.0,0.85141666]
[1752258436126,0.70810033,117540.0,117530.0,0.85141666]
[1752258436328,1.10970093,117540.0,117530.0,0.87444666]
[1752258437534,1.0484491,117540.0,117530.0,0.87444666]
[1752258438027,1.0484491,117540.0,117530.0,1.1876635]
[1752258438028,0.19251261,117540.0,117530.0,1.1876635]
[1752258438229,0.39538799,117560.0,117550.0,0.193114]
[1752258438425,0.39538799,117560.0,117550.0,1.86417836]
[1752258439031,0.43184799,117560.0,117550.0,1.86417836]
[1752258439233,0.3246919,117560.0,117550.0,1.46257776]
[1752258439537,0.7272925,117560.0,117550.0,1.46257776]
[1752258440034,0.3256919,117560.0,117550.0,1.46257776]
[1752258440830,0.3256919,117560.0,117550.0,1.86417836]
[1752258441638,0.3266919,117560.0,117550.0,1.86417836]
[1752258442734,0.002,117560.0,117550.0,2.22497836]
[1752258443537,0.002,117560.0,117550.0,2.55489436]
[1752258444436,0.05483,117560.0,117550.0,2.55489436]
[1752258446539,0.13883452,117560.0,117550.0,2.55489436]
[1752258446836,0.13883452,117560.0,117550.0,2.19409436]
[1752258448737,0.17529452,117560.0,117550.0,2.19409436]
[1752258449539,0.17529452,117560.0,117550.0,1.79249376]
[1752258450241,0.53609452,117560.0,117550.0,1.79249376]
[1752258452041,0.55124164,117560.0,117550.0,1.79249376]
[1752258452438,0.95284224,117560.0,117550.0,1.79249376]
[1752258453139,0.95284224,117560.0,117550.0,1.70411]
[1752258453444,0.95284224,117560.0,117550.0,1.79249376]
[1752258453644,0.8765006,117560.0,117550.0,1.29249376]
[1752258453845,0.93756065,117560.0,117550.0,1.29249376]
[1752258455241,0.93756065,117560.0,117550.0,1.18108]
[1752258455443,0.8765006,117560.0,117550.0,1.18108]
[1752258455648,0.95284224,117560.0,117550.0,1.18108]
[1752258455836,1.35444284,117560.0,117550.0,1.18108]
[1752258456038,0.95284224,117560.0,117550.0,1.18108]
[1752258456449,0.8765006,117560.0,117550.0,0.0002]
[1752258456747,1.46160014,117560.0,117550.0,0.0002]
[1752258457047,1.38525729,117560.0,117550.0,0.0002]
[1752258457247,1.2781012,117560.0,117550.0,0.0002]
[1752258457646,1.38525729,117560.0,117550.0,0.0002]
[1752258458847,1.38525729,117560.0,117530.0,1.18036]
[1752258458848,1.30961729,117560.0,117530.0,1.18036]
[1752258459051,0.92805262,117540.0,117530.0,1.26874376]
[1752258459251,0.95086262,117540.0,117530.0,1.26874376]
[1752258460650,0.95086262,117540.0,117530.0,1.26974376]
[1752258460950,0.95086262,117540.0,117530.0,1.27074376]
[1752258461747,0.95086262,117540.0,117530.0,1.18236]
[1752258461941,0.8745006,117540.0,117530.0,1.18236]
[1752258462652,0.95087346,117540.0,117530.0,1.18236]
[1752258462846,1.31167346,117540.0,117530.0,1.18236]
[1752258463048,1.31167346,117540.0,117530.0,0.002]
[1752258463648,1.2353006,117540.0,117530.0,0.002]
[1752258464349,0.8337,117540.0,117530.0,0.002]
[1752258464550,1.8254606,117540.0,117530.0,0.002]
[1752258464749,1.93261669,117540.0,117530.0,0.002]
[1752258464943,1.41167779,117540.0,117530.0,0.002]
[1752258465149,1.8947217,117540.0,117530.0,0.02503]
[1752258465448,1.8947217,117540.0,117530.0,0.002]
[1752258465649,1.8947217,117540.0,117530.0,0.001]
[1752258465846,1.8957217,117540.0,117530.0,0.001]
[1752258467555,0.11358,117530.0,117520.0,0.00170177]
[1752258467756,0.93703006,117530.0,117520.0,0.00170177]
[1752258468761,0.93703006,117530.0,117520.0,0.03573777]
[1752258472163,0.8759806,117530.0,117520.0,0.03573777]
[1752258474365,0.95234192,117530.0,117520.0,0.03573777]
[1752258474560,0.8759806,117530.0,117520.0,0.03573777]
[1752258475560,0.95234192,117530.0,117520.0,0.03573777]
[1752258476158,0.8759806,117530.0,117520.0,0.03573777]
[1752258476358,0.95234192,117530.0,117520.0,0.03573777]
[1752258477963,1.31314192,117530.0,117520.0,0.03573777]
[1752258481068,1.31314192,117530.0,117520.0,0.00170177]
[1752258481661,1.31314192,117530.0,117520.0,0.03573777]
[1752258482172,1.31414192,117530.0,117520.0,0.03573777]
[1752258482765,1.31514192,117530.0,117520.0,0.03573777]
[1752258483772,1.31514192,117530.0,117520.0,0.00170177]
[1752258484064,1.2387806,117530.0,117520.0,0.00170177]
[1752258485474,1.6403812,117530.0,117510.0,0.0002]
[1752258485772,1.9288121,117520.0,117510.0,0.08858376]
[1752258485974,1.5272115,117520.0,117510.0,0.08838376]
[1752258486576,1.4661006,117520.0,117510.0,0.08838376]
[1752258487374,1.54248881,117520.0,117510.0,0.08838376]
[1752258488674,1.55097305,117520.0,117510.0,0.08838376]
[1752258489174,1.54248881,117520.0,117510.0,0.08838376]
[1752258489574,1.94408941,117520.0,117510.0,0.08838376]
[1752258489776,1.8677012,117520.0,117510.0,0.08838376]
[1752258490074,1.97485729,117520.0,117510.0,0.08838376]
[1752258490273,1.97485729,117520.0,117500.0,0.00851222]
[1752258490274,1.94417238,117520.0,117500.0,0.00851222]
[1752258490477,1.94417238,117520.0,117500.0,0.04152598]
[1752258490478,0.95245178,117510.0,117500.0,0.04152598]
[1752258490670,0.8759806,117510.0,117500.0,0.04132598]
[1752258491073,0.98313669,117510.0,117500.0,0.04132598]
[1752258492677,0.98313669,117510.0,117500.0,0.00831222]
[1752258492873,0.98313669,117510.0,117500.0,0.03301376]
[1752258493073,0.98313669,117510.0,117500.0,0.04151244]
[1752258494878,0.58153609,117510.0,117500.0,0.04151244]
[1752258495080,1.17165609,117510.0,117500.0,0.07658244]
[1752258495276,1.0645,117510.0,117500.0,0.07658244]
[1752258495680,1.4661006,117510.0,117500.0,0.07658244]
[1752258496678,1.4661006,117510.0,117490.0,0.0002]
[1752258496679,0.07831,117500.0,117490.0,0.0002]
[1752258496876,0.07831,117500.0,117480.0,0.00170234]
[1752258496877,0.1147,117490.0,117480.0,0.00170234]
[1752258497077,0.1147,117490.0,117480.0,0.0697861]
[1752258497277,0.17585245,117490.0,117480.0,0.0697861]
[1752258497480,0.93825305,117490.0,117480.0,0.0697861]
[1752258497685,0.93825305,117490.0,117480.0,0.0347161]
[1752258498185,0.95356972,117490.0,117480.0,0.0347161]
[1752258499680,0.95356972,117490.0,117480.0,0.5458367]
[1752258499681,0.53660243,117490.0,117480.0,0.5458367]
[1752258499875,0.17580243,117490.0,117480.0,0.5458367]
[1752258500075,0.17580243,117490.0,117480.0,2.0867967]
[1752258500481,0.13941243,117490.0,117480.0,2.0867967]
[1752258500985,0.07831,117490.0,117480.0,2.0867967]
[1752258501185,0.07831,117490.0,117480.0,2.5867967]
[1752258501482,0.13941243,117490.0,117480.0,2.5867967]
[1752258501781,0.11193,117490.0,117480.0,2.2259967]
[1752258501985,0.11193,117490.0,117480.0,1.8243961]
[1752258502385,0.17303243,117490.0,117480.0,1.8243961]
[1752258502582,0.17303243,117490.0,117480.0,1.3243961]
[1752258502788,0.93543303,117490.0,117480.0,1.2497461]
[1752258502983,0.93543303,117490.0,117480.0,0.0347161]
[1752258503379,0.8743306,117490.0,117480.0,0.0347161]
[1752258504087,0.95079972,117490.0,117480.0,0.0347161]
[1752258506286,0.95079972,117490.0,117480.0,0.00170234]
[1752258506487,0.8743306,117490.0,117480.0,0.00170234]
[1752258506689,1.0445012,117490.0,117480.0,0.00170234]
[1752258506878,0.03362,117470.0,117450.0,0.33832686]
[1752258507080,0.2038486,117450.0,117440.0,0.00170292]
[1752258507278,1.08290031,117450.0,117440.0,0.00170292]
[1752258507488,1.0217992,117450.0,117440.0,0.03471668]
[1752258507688,1.0445592,117450.0,117440.0,0.03471668]
[1752258507884,0.18830639,117450.0,117440.0,0.71608058]
[1752258508185,0.38579383,117460.0,117450.0,0.2050988]
[1752258508383,0.34323893,117460.0,117450.0,0.71436316]
[1752258508982,0.17302093,117460.0,117450.0,1.07516316]
[1752258509185,0.06109093,117460.0,117450.0,1.07516316]
[1752258509384,0.06109093,117460.0,117450.0,1.14453195]
[1752258509985,0.34322073,117470.0,117460.0,0.2281143]
[1752258510287,0.2821298,117470.0,117460.0,1.49638806]
[1752258510487,0.2821298,117470.0,117460.0,1.96735745]
[1752258510789,0.2821298,117470.0,117460.0,0.31274806]
[1752258511087,1.11389919,117470.0,117460.0,0.06788376]
[1752258511288,1.19027558,117470.0,117460.0,0.23809806]
[1752258511485,0.83047558,117470.0,117460.0,0.23809806]
[1752258511690,0.72130619,117470.0,117460.0,0.23809806]
[1752258512189,0.6449298,117470.0,117460.0,0.23809806]
[1752258515692,0.6449298,117470.0,117460.0,0.31274806]
[1752258516487,0.3451975,117470.0,117460.0,0.31274806]
[1752258517395,0.7059975,117470.0,117460.0,0.06788376]
[1752258517599,0.2821443,117460.0,117450.0,0.0002]
[1752258517790,0.2821588,117450.0,117440.0,0.17214502]
[1752258518104,1.11392819,117450.0,117440.0,0.17194612]
[1752258518294,0.2821588,117450.0,117440.0,0.20681612]
[1752258518494,0.8780788,117450.0,117440.0,0.20681612]
[1752258518799,1.2388788,117450.0,117440.0,0.03657292]
[1752258519205,0.6429588,117450.0,117440.0,0.03657292]
[1752258519497,1.11392819,117450.0,117440.0,0.03657292]
[1752258519895,1.13021015,117450.0,117440.0,0.00170292]
[1752258520100,0.1702432,117440.0,117430.0,0.0002]
[1752258520295,0.2821877,117430.0,117420.0,0.0002]
[1752258520495,0.2820022,117420.0,117410.0,0.93657115]
[1752258520799,0.6428022,117420.0,117410.0,0.93657115]
[1752258521195,0.6428022,117420.0,117410.0,0.94933557]
[1752258521699,0.6428022,117420.0,117410.0,0.93657115]
[1752258522399,0.6428022,117420.0,117410.0,0.91354115]
[1752258522594,0.6428022,117420.0,117410.0,0.81934965]
[1752258522802,0.6428022,117420.0,117410.0,0.64907285]
[1752258522997,0.6428022,117420.0,117410.0,0.81935955]
[1752258523395,0.6428022,117420.0,117410.0,0.87497955]
[1752258523792,0.6428022,117420.0,117410.0,0.87797955]
[1752258524000,0.6428022,117420.0,117410.0,0.90100955]
[1752258524390,0.2822022,117420.0,117410.0,1.73277894]
[1752258524901,0.11193,117420.0,117410.0,1.73277894]
[1752258525101,0.2822022,117420.0,117410.0,1.26080955]
[1752258525599,0.2822022,117420.0,117410.0,1.25880955]
[1752258526001,0.6430022,117420.0,117410.0,0.87497955]
[1752258526202,0.6430022,117420.0,117410.0,0.89800955]
[1752258530107,0.11193,117420.0,117410.0,1.25880955]
[1752258530297,0.2822022,117420.0,117410.0,0.89800955]
[1752258532501,0.2822022,117420.0,117410.0,0.91089696]
[1752258535903,0.02276,117420.0,117410.0,1.38186635]
[1752258536109,0.7279542,117430.0,117420.0,0.2834122]
[1752258536312,0.7279542,117430.0,117420.0,0.75438159]
[1752258536605,0.07736,117430.0,117420.0,1.41508159]
[1752258536903,0.07736,117430.0,117420.0,0.5833122]
[1752258537108,0.07736,117430.0,117420.0,1.55428159]
[1752258537405,0.2476177,117430.0,117420.0,1.55528159]
[1752258538107,0.07736,117430.0,117420.0,1.55628159]
[1752258538509,0.30866379,117430.0,117420.0,1.55628159]
[1752258539208,0.30866379,117430.0,117420.0,1.0853122]
[1752258539711,0.34306379,117430.0,117420.0,1.0853122]
[1752258539910,0.70386379,117430.0,117420.0,0.7854122]
[1752258540409,1.17483318,117430.0,117420.0,0.7071322]
[1752258540805,1.17483318,117430.0,117420.0,0.502]
[1752258541010,1.191136,117430.0,117420.0,0.002]
[1752258541508,0.11176,117420.0,117400.0,0.0017035]
[1752258541709,2.13065587,117410.0,117400.0,0.0017035]
[1752258542108,2.06961609,117410.0,117400.0,0.0017035]
[1752258542613,2.06993609,117410.0,117400.0,0.0017035]
[1752258542812,1.66024984,117410.0,117400.0,0.0365635]
[1752258543108,2.13121923,117410.0,117400.0,0.0365635]
[1752258543310,2.07017609,117410.0,117400.0,0.0365635]
[1752258543515,2.07517609,117410.0,117400.0,0.0365635]
[1752258544209,2.14325426,117410.0,117400.0,0.0017035]
[1752258546306,2.15855248,117410.0,117400.0,0.0017035]
[1752258548215,1.56299248,117410.0,117400.0,0.0017035]
[1752258548412,2.15819248,117410.0,117400.0,0.0017035]
[1752258548614,2.15807248,117410.0,117400.0,0.0017035]
[1752258552722,2.26522857,117410.0,117400.0,0.0017035]
[1752258552920,2.18885218,117410.0,117400.0,0.0017035]
[1752258553121,2.08169609,117410.0,117400.0,0.0017035]
[1752258557022,2.08117609,117410.0,117400.0,0.0017035]
[1752258557223,1.48661609,117410.0,117400.0,0.0017035]
[1752258557426,2.15747765,117410.0,117400.0,0.0017035]
[1752258558323,2.15771765,117410.0,117400.0,0.0017035]
[1752258558722,1.56299765,117410.0,117400.0,0.0017035]
[1752258558928,2.15759765,117410.0,117400.0,0.0017035]
[1752258559229,2.15759765,117410.0,117400.0,0.2076747]
[1752258560729,2.15759765,117410.0,117400.0,0.1720047]
[1752258561427,1.56299765,117410.0,117400.0,0.1720047]
[1752258561831,1.68622826,117410.0,117400.0,0.1720047]
[1752258562024,2.15719765,117410.0,117400.0,0.1720047]
[1752258562224,2.15711765,117410.0,117400.0,0.2076747]
[1752258562927,2.08859273,117410.0,117400.0,0.2076747]
[1752258565630,2.01221117,117410.0,117400.0,0.2076747]
[1752258566430,2.01221117,117410.0,117400.0,0.1720047]
[1752258567533,2.11936726,117410.0,117400.0,0.1720047]
[1752258575732,0.99416056,117410.0,117400.0,0.1720047]
[1752258575929,1.75708726,117410.0,117400.0,0.1720047]
[1752258579034,0.76200279,117410.0,117400.0,0.61011917]
[1752258579235,0.477798,117410.0,117400.0,1.04445917]
[1752258579427,1.16444726,117410.0,117400.0,0.2812147]
[1752258579632,1.16444726,117410.0,117400.0,0.2076747]
[1752258580032,0.76200279,117410.0,117400.0,0.68365917]
[1752258580333,0.75000279,117410.0,117400.0,0.68365917]
[1752258580536,0.75900279,117410.0,117400.0,0.68365917]